[Event "Titled Tuesday Blitz June 1 2021"]
[White "Kretov, Evgenij"]
[Black "Eugene, Floryan"]
[WhiteFideId "4167821"]
[BlackFideId "20694784"]
[WhiteElo "2381"]
[BlackElo "2530"]
[Result "0-1"]
[Round "11"]
[TimeControl "180+1"]
[Date "2021.06.01"]
[WhiteClock "0:00:11"]
[BlackClock "0:00:15"]

1. d4 {[%clk 0:03:00]}  Nf6 {[%clk 0:02:59]} 2. c4 {[%clk 0:03:01]}  c6 {[%clk 0:02:59]} 3. Nc3 {[%clk 0:03:01]}  d5 {[%clk 0:03:00]} 4. e3 {[%clk 0:03:01]}  g6 {[%clk 0:03:00]} 5. Nf3 {[%clk 0:03:02]}  Bg7 {[%clk 0:03:01]} 6. Be2 {[%clk 0:03:02]}  O-O {[%clk 0:03:01]} 7. O-O {[%clk 0:03:03]}  Bg4 {[%clk 0:03:01]} 8. b3 {[%clk 0:03:01]}  e6 {[%clk 0:02:57]} 9. Bb2 {[%clk 0:03:01]}  Nbd7 {[%clk 0:02:57]} 10. h3 {[%clk 0:03:01]}  Bxf3 {[%clk 0:02:56]} 11. Bxf3 {[%clk 0:03:01]}  Nb6 {[%clk 0:02:55]} 12. Qe2 {[%clk 0:02:58]}  Qd7 {[%clk 0:02:53]} 13. Rfd1 {[%clk 0:02:57]}  Rfd8 {[%clk 0:02:47]} 14. e4 {[%clk 0:02:57]}  dxc4 {[%clk 0:02:28]} 15. bxc4 {[%clk 0:02:56]}  Qe7 {[%clk 0:02:29]} 16. e5 {[%clk 0:02:54]}  Ne8 {[%clk 0:02:25]} 17. c5 {[%clk 0:02:52]}  Nd5 {[%clk 0:02:25]} 18. Ne4 {[%clk 0:02:52]}  b6 {[%clk 0:02:19]} 19. Nd6 {[%clk 0:02:40]}  Nxd6 {[%clk 0:02:14]} 20. cxd6 {[%clk 0:02:37]}  Qd7 {[%clk 0:02:12]} 21. Rdc1 {[%clk 0:02:35]}  Rdc8 {[%clk 0:02:06]} 22. Ba3 {[%clk 0:02:33]}  a5 {[%clk 0:01:57]} 23. Rab1 {[%clk 0:02:30]}  Rab8 {[%clk 0:01:54]} 24. Rc2 {[%clk 0:02:21]}  c5 {[%clk 0:01:23]} 25. dxc5 {[%clk 0:02:19]}  Qa4 {[%clk 0:01:23]} 26. Rb3 {[%clk 0:02:07]}  bxc5 {[%clk 0:01:21]} 27. Rxc5 {[%clk 0:02:01]}  Nb4 {[%clk 0:01:13]} 28. Bxb4 {[%clk 0:01:52]}  axb4 {[%clk 0:01:11]} 29. Rxc8+ {[%clk 0:01:50]}  Rxc8 {[%clk 0:01:12]} 30. Qd2 {[%clk 0:01:49]}  Bxe5 {[%clk 0:01:09]} 31. d7 {[%clk 0:01:46]}  Rd8 {[%clk 0:01:09]} 32. Rd3 {[%clk 0:01:43]}  Bc3 {[%clk 0:01:00]} 33. Qf4 {[%clk 0:01:01]}  Qxa2 {[%clk 0:00:40]} 34. Qc7 {[%clk 0:00:58]}  Bf6 {[%clk 0:00:35]} 35. Qb7 {[%clk 0:00:55]}  b3 {[%clk 0:00:24]} 36. g3 {[%clk 0:00:43]}  b2 {[%clk 0:00:23]} 37. Rd1 {[%clk 0:00:42]}  Kg7 {[%clk 0:00:22]} 38. Kg2 {[%clk 0:00:42]}  Qa4 {[%clk 0:00:20]} 39. h4 {[%clk 0:00:38]}  h5 {[%clk 0:00:19]} 40. Rd3 {[%clk 0:00:24]}  Bd4 {[%clk 0:00:19]} 41. Rd1 {[%clk 0:00:22]}  Rxd7 {[%clk 0:00:18]} 42. Qe4 {[%clk 0:00:20]}  e5 {[%clk 0:00:18]} 43. g4 {[%clk 0:00:18]}  hxg4 {[%clk 0:00:17]} 44. Bxg4 {[%clk 0:00:17]}  f5 {[%clk 0:00:16]} 45. Bxf5 {[%clk 0:00:17]}  gxf5 {[%clk 0:00:15]} 46. Qxf5 {[%clk 0:00:18]}  Qxd1 {[%clk 0:00:15]} 47. Qxd7+ {[%clk 0:00:18]}  Kf6 {[%clk 0:00:16]} 48. Qd6+ {[%clk 0:00:13]}  Kf5 {[%clk 0:00:16]} 49. Qd7+ {[%clk 0:00:11]}  Ke4 {[%clk 0:00:15]} 50. Qh7+ {[%clk 0:00:12]}  Kd5 {[%clk 0:00:15]} 51. Qf7+ {[%clk 0:00:12]}  Kc5 {[%clk 0:00:15]} 52. Qc7+ {[%clk 0:00:12]}  Kb4 {[%clk 0:00:15]} 53. Qb7+ {[%clk 0:00:12]}  Ka3 {[%clk 0:00:15]} 54. Qa6+ {[%clk 0:00:11]}  Qa4 {[%clk 0:00:15]} 55. Qd6+ {[%clk 0:00:11]}  Ka2 {[%clk 0:00:15]} 56. Qd5+ {[%clk 0:00:11]}  Qb3 {[%clk 0:00:15]} 0-1


[Site "https://www.chess.com"]

[Event "Titled Tuesday Blitz June 1 2021"]
[White "Krivonosov, Oleg"]
[Black "Krishna Teja, N"]
[WhiteFideId "11600349"]
[BlackFideId "5001498"]
[WhiteElo "2469"]
[BlackElo "2278"]
[Result "1/2-1/2"]
[Round "11"]
[TimeControl "180+1"]
[Date "2021.06.01"]
[WhiteClock "0:00:07"]
[BlackClock "0:00:19"]

1. Nf3 {[%clk 0:03:00]}  d5 {[%clk 0:02:50]} 2. d4 {[%clk 0:02:59]}  Nf6 {[%clk 0:02:46]} 3. c4 {[%clk 0:03:00]}  e6 {[%clk 0:02:45]} 4. g3 {[%clk 0:02:59]}  dxc4 {[%clk 0:02:43]} 5. Qa4+ {[%clk 0:02:58]}  Bd7 {[%clk 0:02:43]} 6. Qxc4 {[%clk 0:02:58]}  Bc6 {[%clk 0:02:42]} 7. Bg2 {[%clk 0:02:58]}  Nbd7 {[%clk 0:02:42]} 8. O-O {[%clk 0:02:57]}  Be7 {[%clk 0:02:41]} 9. Nc3 {[%clk 0:02:56]}  O-O {[%clk 0:02:41]} 10. Bg5 {[%clk 0:02:55]}  Ne4 {[%clk 0:02:40]} 11. Bxe7 {[%clk 0:02:53]}  Qxe7 {[%clk 0:02:40]} 12. Nxe4 {[%clk 0:02:51]}  Bxe4 {[%clk 0:02:41]} 13. Qxc7 {[%clk 0:02:48]}  Rfc8 {[%clk 0:02:40]} 14. Qf4 {[%clk 0:02:46]}  Nf6 {[%clk 0:02:40]} 15. Rac1 {[%clk 0:02:36]}  Qb4 {[%clk 0:02:39]} 16. Rxc8+ {[%clk 0:02:36]}  Rxc8 {[%clk 0:02:39]} 17. Rc1 {[%clk 0:02:35]}  Rf8 {[%clk 0:02:29]} 18. Qd2 {[%clk 0:02:29]}  Qb6 {[%clk 0:02:18]} 19. Qc3 {[%clk 0:02:22]}  Nd5 {[%clk 0:02:11]} 20. Qb3 {[%clk 0:02:19]}  Qa6 {[%clk 0:02:10]} 21. e3 {[%clk 0:02:03]}  Qe2 {[%clk 0:01:54]} 22. Re1 {[%clk 0:02:01]}  Qa6 {[%clk 0:01:50]} 23. Ne5 {[%clk 0:01:56]}  Bxg2 {[%clk 0:01:49]} 24. Kxg2 {[%clk 0:01:57]}  Rc8 {[%clk 0:01:50]} 25. Nd3 {[%clk 0:01:53]}  b6 {[%clk 0:01:37]} 26. Kg1 {[%clk 0:01:50]}  Nf6 {[%clk 0:01:27]} 27. Rc1 {[%clk 0:01:45]}  Ne4 {[%clk 0:01:27]} 28. Rxc8+ {[%clk 0:01:42]}  Qxc8 {[%clk 0:01:28]} 29. Qd1 {[%clk 0:01:40]}  Qc4 {[%clk 0:01:14]} 30. Qc1 {[%clk 0:01:31]}  Qxc1+ {[%clk 0:01:03]} 31. Nxc1 {[%clk 0:01:31]}  Kf8 {[%clk 0:01:04]} 32. Kf1 {[%clk 0:01:29]}  Ke7 {[%clk 0:01:04]} 33. Ke2 {[%clk 0:01:30]}  Kd6 {[%clk 0:01:04]} 34. f3 {[%clk 0:01:28]}  Nf6 {[%clk 0:01:05]} 35. e4 {[%clk 0:01:28]}  Nd7 {[%clk 0:01:04]} 36. Nd3 {[%clk 0:01:26]}  f6 {[%clk 0:01:04]} 37. h4 {[%clk 0:01:22]}  Nb8 {[%clk 0:01:03]} 38. Kd2 {[%clk 0:01:21]}  Nc6 {[%clk 0:01:03]} 39. Kc3 {[%clk 0:01:21]}  g6 {[%clk 0:01:00]} 40. b4 {[%clk 0:01:18]}  a6 {[%clk 0:00:59]} 41. a4 {[%clk 0:01:17]}  h6 {[%clk 0:00:56]} 42. Kc4 {[%clk 0:01:15]}  Na7 {[%clk 0:00:42]} 43. e5+ {[%clk 0:01:09]}  fxe5 {[%clk 0:00:42]} 44. Nxe5 {[%clk 0:01:05]}  b5+ {[%clk 0:00:42]} 45. axb5 {[%clk 0:01:03]}  axb5+ {[%clk 0:00:43]} 46. Kd3 {[%clk 0:01:02]}  g5 {[%clk 0:00:38]} 47. Nf7+ {[%clk 0:00:52]}  Kd5 {[%clk 0:00:30]} 48. Nxh6 {[%clk 0:00:35]}  gxh4 {[%clk 0:00:29]} 49. gxh4 {[%clk 0:00:35]}  Nc6 {[%clk 0:00:30]} 50. Ng4 {[%clk 0:00:28]}  Nxb4+ {[%clk 0:00:28]} 51. Kc3 {[%clk 0:00:27]}  Na2+ {[%clk 0:00:28]} 52. Kb2 {[%clk 0:00:22]}  Nb4 {[%clk 0:00:27]} 53. h5 {[%clk 0:00:22]}  Kxd4 {[%clk 0:00:23]} 54. h6 {[%clk 0:00:17]}  Nd3+ {[%clk 0:00:23]} 55. Kb3 {[%clk 0:00:17]}  Nf4 {[%clk 0:00:21]} 56. h7 {[%clk 0:00:16]}  Ng6 {[%clk 0:00:21]} 57. Kb4 {[%clk 0:00:15]}  e5 {[%clk 0:00:20]} 58. Kxb5 {[%clk 0:00:14]}  e4 {[%clk 0:00:20]} 59. fxe4 {[%clk 0:00:13]}  Kxe4 {[%clk 0:00:21]} 60. Nh6 {[%clk 0:00:10]}  Nh8 {[%clk 0:00:19]} 61. Nf7 {[%clk 0:00:08]}  Nxf7 {[%clk 0:00:19]} 62. h8=Q {[%clk 0:00:07]}  Nxh8 {[%clk 0:00:19]} 1/2-1/2


[Site "https://www.chess.com"]

[Event "Titled Tuesday Blitz June 1 2021"]
[White "Makhnev, Denis"]
[Black "Manafov, Vugar"]
[WhiteFideId "13707647"]
[BlackFideId "13410814"]
[WhiteElo "2549"]
[BlackElo "2274"]
[Result "1-0"]
[Round "11"]
[TimeControl "180+1"]
[Date "2021.06.01"]
[WhiteClock "0:00:16"]
[BlackClock "0:00:04"]

1. d4 {[%clk 0:03:00]}  Nf6 {[%clk 0:02:59]} 2. c4 {[%clk 0:03:00]}  e6 {[%clk 0:03:00]} 3. Nf3 {[%clk 0:03:00]}  Bb4+ {[%clk 0:03:00]} 4. Bd2 {[%clk 0:02:59]}  a5 {[%clk 0:03:00]} 5. g3 {[%clk 0:02:59]}  O-O {[%clk 0:03:00]} 6. Bg2 {[%clk 0:02:59]}  d5 {[%clk 0:03:01]} 7. Qc2 {[%clk 0:02:59]}  Nbd7 {[%clk 0:03:02]} 8. O-O {[%clk 0:02:59]}  c6 {[%clk 0:03:02]} 9. Rd1 {[%clk 0:02:58]}  Be7 {[%clk 0:03:02]} 10. Bf4 {[%clk 0:02:55]}  Nh5 {[%clk 0:03:02]} 11. Bc1 {[%clk 0:02:55]}  b5 {[%clk 0:03:02]} 12. c5 {[%clk 0:02:43]}  f5 {[%clk 0:03:00]} 13. Nc3 {[%clk 0:02:32]}  g5 {[%clk 0:02:50]} 14. Ne1 {[%clk 0:02:21]}  h6 {[%clk 0:02:48]} 15. Nd3 {[%clk 0:02:21]}  Nhf6 {[%clk 0:02:36]} 16. a3 {[%clk 0:02:18]}  Ne4 {[%clk 0:02:27]} 17. f3 {[%clk 0:02:16]}  Nxc3 {[%clk 0:02:26]} 18. Qxc3 {[%clk 0:02:17]}  b4 {[%clk 0:02:23]} 19. Qc2 {[%clk 0:02:14]}  bxa3 {[%clk 0:02:22]} 20. Rxa3 {[%clk 0:02:15]}  Ba6 {[%clk 0:02:13]} 21. e4 {[%clk 0:02:05]}  Qc7 {[%clk 0:01:59]} 22. exd5 {[%clk 0:01:41]}  exd5 {[%clk 0:01:59]} 23. f4 {[%clk 0:01:41]}  Bf6 {[%clk 0:01:53]} 24. Ne5 {[%clk 0:01:41]}  Bg7 {[%clk 0:01:21]} 25. Nxd7 {[%clk 0:01:10]}  Qxd7 {[%clk 0:01:21]} 26. fxg5 {[%clk 0:01:11]}  hxg5 {[%clk 0:01:20]} 27. Bxg5 {[%clk 0:01:11]}  Rae8 {[%clk 0:01:12]} 28. Re3 {[%clk 0:01:11]}  Rxe3 {[%clk 0:01:07]} 29. Bxe3 {[%clk 0:01:12]}  Re8 {[%clk 0:01:08]} 30. Qc3 {[%clk 0:01:00]}  Qb7 {[%clk 0:00:50]} 31. Kf2 {[%clk 0:00:50]}  Bf6 {[%clk 0:00:39]} 32. Bf3 {[%clk 0:00:47]}  Qb5 {[%clk 0:00:31]} 33. Qc2 {[%clk 0:00:42]}  Bg7 {[%clk 0:00:24]} 34. h4 {[%clk 0:00:39]}  a4 {[%clk 0:00:17]} 35. h5 {[%clk 0:00:38]}  Qb7 {[%clk 0:00:15]} 36. h6 {[%clk 0:00:38]}  Bh8 {[%clk 0:00:15]} 37. Qxf5 {[%clk 0:00:37]}  Qxb2+ {[%clk 0:00:15]} 38. Rd2 {[%clk 0:00:37]}  Qc3 {[%clk 0:00:11]} 39. Qg6+ {[%clk 0:00:20]}  Kf8 {[%clk 0:00:11]} 40. Bf4 {[%clk 0:00:20]}  Bxd4+ {[%clk 0:00:12]} 41. Kg2 {[%clk 0:00:21]}  Bf1+ {[%clk 0:00:11]} 42. Kh2 {[%clk 0:00:18]}  Be5 {[%clk 0:00:08]} 43. Bh5 {[%clk 0:00:16]}  Re7 {[%clk 0:00:06]} 44. Rf2 {[%clk 0:00:16]}  Bd4 {[%clk 0:00:04]} 45. Be3+ {[%clk 0:00:16]} 1-0


[Site "https://www.chess.com"]

[Event "Titled Tuesday Blitz June 1 2021"]
[White "Maksimenko, Viktor"]
[Black "Stelmaszyk, Nico"]
[WhiteFideId "13710478"]
[BlackFideId "16200462"]
[WhiteElo "2269"]
[BlackElo "2119"]
[Result "0-1"]
[Round "11"]
[TimeControl "180+1"]
[Date "2021.06.01"]
[WhiteClock "0:00:05"]
[BlackClock "0:00:22"]

1. d4 {[%clk 0:03:00]}  d5 {[%clk 0:02:59]} 2. c4 {[%clk 0:02:59]}  e6 {[%clk 0:02:59]} 3. Nf3 {[%clk 0:02:58]}  c5 {[%clk 0:02:59]} 4. cxd5 {[%clk 0:02:58]}  exd5 {[%clk 0:03:00]} 5. g3 {[%clk 0:02:59]}  Nc6 {[%clk 0:02:59]} 6. Bg2 {[%clk 0:02:59]}  c4 {[%clk 0:02:58]} 7. O-O {[%clk 0:02:57]}  Bb4 {[%clk 0:02:58]} 8. Ne5 {[%clk 0:02:52]}  Nge7 {[%clk 0:02:51]} 9. Nc3 {[%clk 0:02:47]}  O-O {[%clk 0:02:50]} 10. a3 {[%clk 0:02:16]}  Bxc3 {[%clk 0:02:46]} 11. bxc3 {[%clk 0:02:17]}  Na5 {[%clk 0:02:45]} 12. Be3 {[%clk 0:02:08]}  f6 {[%clk 0:02:37]} 13. Nf3 {[%clk 0:02:03]}  Nb3 {[%clk 0:02:37]} 14. Ra2 {[%clk 0:02:02]}  a5 {[%clk 0:02:31]} 15. Nd2 {[%clk 0:01:56]}  a4 {[%clk 0:02:30]} 16. f3 {[%clk 0:01:55]}  Re8 {[%clk 0:02:27]} 17. Bf2 {[%clk 0:01:55]}  Qa5 {[%clk 0:02:19]} 18. Rc2 {[%clk 0:01:49]}  Bf5 {[%clk 0:02:11]} 19. e4 {[%clk 0:01:49]}  Bg6 {[%clk 0:02:11]} 20. Be3 {[%clk 0:01:42]}  Ra6 {[%clk 0:01:51]} 21. f4 {[%clk 0:00:55]}  Nxd2 {[%clk 0:01:39]} 22. Qxd2 {[%clk 0:00:44]}  Bxe4 {[%clk 0:01:40]} 23. Bxe4 {[%clk 0:00:42]}  dxe4 {[%clk 0:01:40]} 24. Rb2 {[%clk 0:00:41]}  Nd5 {[%clk 0:01:22]} 25. Rc1 {[%clk 0:00:35]}  Rb6 {[%clk 0:01:18]} 26. Rcc2 {[%clk 0:00:29]}  Rb3 {[%clk 0:01:16]} 27. Kf2 {[%clk 0:00:27]}  f5 {[%clk 0:01:14]} 28. Qe2 {[%clk 0:00:23]}  b5 {[%clk 0:01:02]} 29. Qd2 {[%clk 0:00:16]}  Rxa3 {[%clk 0:00:50]} 30. Rb4 {[%clk 0:00:14]}  Nxb4 {[%clk 0:00:46]} 31. cxb4 {[%clk 0:00:15]}  Qc7 {[%clk 0:00:44]} 32. Rc3 {[%clk 0:00:14]}  Rxc3 {[%clk 0:00:40]} 33. Qxc3 {[%clk 0:00:14]}  Qd6 {[%clk 0:00:39]} 34. Ke2 {[%clk 0:00:11]}  Ra8 {[%clk 0:00:36]} 35. Qa3 {[%clk 0:00:10]}  c3 {[%clk 0:00:32]} 36. Qxc3 {[%clk 0:00:10]}  a3 {[%clk 0:00:32]} 37. d5 {[%clk 0:00:10]}  Qxd5 {[%clk 0:00:26]} 38. Bc1 {[%clk 0:00:05]}  Qc4+ {[%clk 0:00:22]} 0-1


[Site "https://www.chess.com"]

[Event "Titled Tuesday Blitz June 1 2021"]
[White "Maly, Alexey"]
[Black "Romanchuk, Viktor"]
[WhiteFideId "14103184"]
[BlackFideId "14109271"]
[WhiteElo "2314"]
[BlackElo "2242"]
[Result "1-0"]
[Round "11"]
[TimeControl "180+1"]
[Date "2021.06.01"]
[WhiteClock "0:01:11"]
[BlackClock "0:01:37"]

1. d4 {[%clk 0:03:00]}  d5 {[%clk 0:02:58]} 2. c4 {[%clk 0:03:01]}  c6 {[%clk 0:02:58]} 3. e3 {[%clk 0:03:01]}  Nf6 {[%clk 0:02:58]} 4. Bd3 {[%clk 0:03:01]}  e6 {[%clk 0:02:57]} 5. Nd2 {[%clk 0:03:02]}  Nbd7 {[%clk 0:02:56]} 6. Ngf3 {[%clk 0:03:02]}  Be7 {[%clk 0:02:56]} 7. O-O {[%clk 0:03:02]}  O-O {[%clk 0:02:56]} 8. e4 {[%clk 0:03:03]}  dxe4 {[%clk 0:02:56]} 9. Nxe4 {[%clk 0:03:04]}  c5 {[%clk 0:02:57]} 10. dxc5 {[%clk 0:03:02]}  Nxc5 {[%clk 0:02:56]} 11. Nxc5 {[%clk 0:03:02]}  Bxc5 {[%clk 0:02:57]} 12. Bg5 {[%clk 0:02:59]}  b6 {[%clk 0:02:57]} 13. Qe2 {[%clk 0:02:57]}  Bb7 {[%clk 0:02:57]} 14. Rad1 {[%clk 0:02:57]}  Qc7 {[%clk 0:02:57]} 15. Ne5 {[%clk 0:02:57]}  Rfd8 {[%clk 0:02:56]} 16. Bb1 {[%clk 0:02:50]}  Rxd1 {[%clk 0:02:52]} 17. Rxd1 {[%clk 0:02:49]}  Rd8 {[%clk 0:02:53]} 18. Rxd8+ {[%clk 0:02:41]}  Qxd8 {[%clk 0:02:53]} 19. Ng4 {[%clk 0:02:40]}  Be7 {[%clk 0:02:43]} 20. Nxf6+ {[%clk 0:02:37]}  Bxf6 {[%clk 0:02:44]} 21. Bxf6 {[%clk 0:02:37]}  Qxf6 {[%clk 0:02:45]} 22. Be4 {[%clk 0:02:33]}  Bxe4 {[%clk 0:02:35]} 23. Qxe4 {[%clk 0:02:34]}  g6 {[%clk 0:02:32]} 24. Qc2 {[%clk 0:02:26]}  Qe5 {[%clk 0:02:29]} 25. g3 {[%clk 0:02:24]}  a5 {[%clk 0:02:28]} 26. h4 {[%clk 0:02:18]}  Qd4 {[%clk 0:02:23]} 27. b3 {[%clk 0:02:17]}  e5 {[%clk 0:02:22]} 28. Kg2 {[%clk 0:02:12]}  e4 {[%clk 0:02:21]} 29. a3 {[%clk 0:02:11]}  e3 {[%clk 0:02:17]} 30. fxe3 {[%clk 0:02:08]}  Qxe3 {[%clk 0:02:18]} 31. b4 {[%clk 0:01:50]}  Qxa3 {[%clk 0:02:17]} 32. c5 {[%clk 0:01:50]}  axb4 {[%clk 0:02:14]} 33. cxb6 {[%clk 0:01:42]}  b3 {[%clk 0:02:12]} 34. Qc8+ {[%clk 0:01:37]}  Kg7 {[%clk 0:02:11]} 35. b7 {[%clk 0:01:34]}  Qa2+ {[%clk 0:01:50]} 36. Kf3 {[%clk 0:01:21]}  b2 {[%clk 0:01:41]} 37. b8=Q {[%clk 0:01:16]}  b1=Q {[%clk 0:01:42]} 38. Qh8+ {[%clk 0:01:11]}  Kh6 {[%clk 0:01:37]} 39. Qf4+ {[%clk 0:01:11]} 1-0


[Site "https://www.chess.com"]

[Event "Titled Tuesday Blitz June 1 2021"]
[White "Martinez Alcantara, Jose Eduardo"]
[Black "Fier, Alexandr"]
[WhiteFideId "3805662"]
[BlackFideId "2107139"]
[WhiteElo "2690"]
[BlackElo "2569"]
[Result "1-0"]
[Round "11"]
[TimeControl "180+1"]
[Date "2021.06.01"]
[WhiteClock "0:00:05"]
[BlackClock "0:00:23"]

1. e4 {[%clk 0:03:00]}  c5 {[%clk 0:02:58]} 2. Nf3 {[%clk 0:02:59]}  e6 {[%clk 0:02:59]} 3. g3 {[%clk 0:02:56]}  Nc6 {[%clk 0:02:57]} 4. Bg2 {[%clk 0:02:56]}  Nf6 {[%clk 0:02:58]} 5. Qe2 {[%clk 0:02:56]}  Be7 {[%clk 0:02:54]} 6. O-O {[%clk 0:02:52]}  d5 {[%clk 0:02:54]} 7. e5 {[%clk 0:02:43]}  Nd7 {[%clk 0:02:52]} 8. c3 {[%clk 0:02:43]}  g5 {[%clk 0:02:46]} 9. h3 {[%clk 0:02:25]}  h5 {[%clk 0:02:46]} 10. g4 {[%clk 0:02:09]}  hxg4 {[%clk 0:02:39]} 11. hxg4 {[%clk 0:02:10]}  Nf8 {[%clk 0:02:35]} 12. d4 {[%clk 0:02:08]}  Ng6 {[%clk 0:02:36]} 13. Be3 {[%clk 0:02:07]}  b6 {[%clk 0:02:33]} 14. Rd1 {[%clk 0:02:03]}  a5 {[%clk 0:02:32]} 15. Na3 {[%clk 0:01:53]}  Ba6 {[%clk 0:02:32]} 16. Nb5 {[%clk 0:01:52]}  c4 {[%clk 0:02:29]} 17. a4 {[%clk 0:01:45]}  Kd7 {[%clk 0:02:29]} 18. b3 {[%clk 0:01:41]}  cxb3 {[%clk 0:02:22]} 19. c4 {[%clk 0:01:42]}  Nb4 {[%clk 0:02:19]} 20. Rab1 {[%clk 0:01:36]}  Rc8 {[%clk 0:01:56]} 21. Nd2 {[%clk 0:01:22]}  Ke8 {[%clk 0:01:21]} 22. Rxb3 {[%clk 0:01:14]}  Kf8 {[%clk 0:01:22]} 23. Rc3 {[%clk 0:01:07]}  Kg7 {[%clk 0:01:21]} 24. Nd6 {[%clk 0:00:44]}  Bxd6 {[%clk 0:01:19]} 25. exd6 {[%clk 0:00:45]}  Qxd6 {[%clk 0:01:20]} 26. Bxg5 {[%clk 0:00:39]}  Nf4 {[%clk 0:01:14]} 27. Qf3 {[%clk 0:00:35]}  Nxg2 {[%clk 0:01:02]} 28. Bf6+ {[%clk 0:00:25]}  Kg6 {[%clk 0:00:51]} 29. Bxh8 {[%clk 0:00:24]}  Rxh8 {[%clk 0:00:52]} 30. Qxg2 {[%clk 0:00:24]}  dxc4 {[%clk 0:00:51]} 31. Nxc4 {[%clk 0:00:16]}  Bxc4 {[%clk 0:00:51]} 32. Rxc4 {[%clk 0:00:17]}  Nd5 {[%clk 0:00:52]} 33. Qe4+ {[%clk 0:00:17]}  Kg7 {[%clk 0:00:52]} 34. Qe5+ {[%clk 0:00:16]}  Qxe5 {[%clk 0:00:52]} 35. dxe5 {[%clk 0:00:17]}  Rh3 {[%clk 0:00:51]} 36. Rdd4 {[%clk 0:00:11]}  Rb3 {[%clk 0:00:50]} 37. Kg2 {[%clk 0:00:11]}  Kg6 {[%clk 0:00:50]} 38. Rc8 {[%clk 0:00:08]}  Kg7 {[%clk 0:00:48]} 39. Rd8 {[%clk 0:00:08]}  Kg6 {[%clk 0:00:45]} 40. Rd7 {[%clk 0:00:07]}  Ra3 {[%clk 0:00:42]} 41. Kh2 {[%clk 0:00:06]}  Rf3 {[%clk 0:00:40]} 42. Kg1 {[%clk 0:00:07]}  Ra3 {[%clk 0:00:41]} 43. Kg2 {[%clk 0:00:05]}  Rb3 {[%clk 0:00:34]} 44. f4 {[%clk 0:00:04]}  Ne3+ {[%clk 0:00:32]} 45. Kh3 {[%clk 0:00:04]}  Nf5+ {[%clk 0:00:31]} 46. Rd3 {[%clk 0:00:05]}  Rxd3+ {[%clk 0:00:27]} 47. Rxd3 {[%clk 0:00:06]}  Ne7 {[%clk 0:00:28]} 48. Rd7 {[%clk 0:00:06]}  Nd5 {[%clk 0:00:28]} 49. Kg3 {[%clk 0:00:06]}  Kg7 {[%clk 0:00:28]} 50. f5 {[%clk 0:00:06]}  Kf8 {[%clk 0:00:28]} 51. fxe6 {[%clk 0:00:05]}  fxe6 {[%clk 0:00:29]} 52. g5 {[%clk 0:00:06]}  Nc3 {[%clk 0:00:28]} 53. g6 {[%clk 0:00:04]}  Nxa4 {[%clk 0:00:28]} 54. Rb7 {[%clk 0:00:04]}  Nc5 {[%clk 0:00:27]} 55. Rxb6 {[%clk 0:00:04]}  Kg7 {[%clk 0:00:28]} 56. Rc6 {[%clk 0:00:03]}  Ne4+ {[%clk 0:00:27]} 57. Kf4 {[%clk 0:00:03]}  Nf2 {[%clk 0:00:22]} 58. Rxe6 {[%clk 0:00:03]}  a4 {[%clk 0:00:22]} 59. Kf5 {[%clk 0:00:03]}  a3 {[%clk 0:00:23]} 60. Re7+ {[%clk 0:00:04]}  Kg8 {[%clk 0:00:23]} 61. Ra7 {[%clk 0:00:05]} 1-0


[Site "https://www.chess.com"]